fUSD/lending_fUSD_20240523
["ID","MTS","AMOUNT","RATE_DAILY","PERIOD"]
[327747687,1716426665169,-500.0,0.00022191,2]
[327747688,1716426665184,-500.0,0.00022191,2]
[327747689,1716426665199,-958.93,0.00022191,2]
[327747690,1716426665215,-509.06332672,0.00022191,2]
[327747691,1716426665230,-509.70007534,0.00022191,2]
[327747692,1716426665244,-500.0,0.00022191,2]
[327747693,1716426665260,-500.0,0.00022191,2]
[327747694,1716426665275,-500.0,0.00022191,2]
[327747695,1716426665290,-507.44846206,0.00022191,2]
[327747696,1716426665305,-500.0,0.00022191,2]
[327747697,1716426665321,-500.0,0.00022191,2]
[327747698,1716426665336,-500.0,0.00022191,2]
[327747699,1716426665351,-500.0,0.00022191,2]
[327747700,1716426665367,-245.09385077,0.00022191,2]
[327747701,1716426665382,-729.95,0.00022191,2]
[327747702,1716426665398,-151.0,0.00022191,7]
[327747703,1716426665640,-824.8,0.00022191,2]
[327747704,1716426665659,-500.0,0.00022191,2]
[327747705,1716426665669,-500.0,0.00022191,2]
[327747706,1716426665679,-500.0,0.00022191,2]
[327747707,1716426665689,-151.0,0.00022191,7]
[327747708,1716426665698,-510.36,0.00022191,2]
[327747709,1716426665708,-500.0,0.00022191,2]
[327747710,1716426665718,-500.0,0.00022191,2]
[327747711,1716426665727,-898.13,0.00022191,2]
[327747712,1716426665737,-507.77784334,0.00022191,2]
[327747713,1716426665750,-791.66,0.00022191,2]
[327747714,1716426665760,-762.15,0.00022191,2]
[327747715,1716426665769,-500.0,0.00022191,2]
[327747716,1716426665779,-514.04719276,0.00022191,2]
[327747717,1716426665789,-500.0,0.00022191,2]
[327747718,1716426665799,-500.0,0.00022191,2]
[327747719,1716426665808,-500.0,0.00022191,2]
[327747720,1716426665819,-151.0,0.00022191,7]
[327747721,1716426665828,-500.0,0.00022191,2]
[327747722,1716426665838,-193.790957,0.00022191,7]
[327747723,1716426665849,-500.0,0.00022191,2]
[327747724,1716426665859,-500.0,0.00022191,2]
[327747725,1716426665871,-500.0,0.00022191,2]
[327747726,1716426665880,-1053.03,0.00022191,2]
[327747727,1716426665889,-151.0,0.00022191,7]
[327747728,1716426665899,-2704.12,0.00022191,2]
[327747729,1716426665909,-500.0,0.00022191,2]
[327747730,1716426665918,-500.0,0.00022191,2]
[327747731,1716426665928,-500.0,0.00022191,2]
[327747732,1716426665938,-500.0,0.00022191,2]
[327747733,1716426665947,-500.0,0.00022191,2]
[327747734,1716426665957,-1278.75,0.00022191,2]
[327747735,1716426665967,-500.0,0.00022191,2]
[327747736,1716426665976,-500.0,0.00022191,2]
[327747737,1716426665985,-500.0,0.00022191,2]
[327747738,1716426665995,-528.08877005,0.00022191,2]
[327747739,1716426666004,-556.77242433,0.00022191,2]
[327747740,1716426666014,-500.0,0.00022191,2]
[327747741,1716426666023,-508.75,0.00022191,2]
[327747742,1716426666033,-500.0,0.00022191,2]
[327747743,1716426666043,-815.24,0.00022191,2]
[327747744,1716426666052,-500.0,0.00022191,2]
[327747745,1716426666066,-500.0,0.00022191,2]
[327747746,1716426666076,-500.0,0.00022191,2]
[327747747,1716426666085,-326.58772326,0.00022191,2]
[327747748,1716426666095,-547.65,0.00022191,2]
[327747749,1716426666105,-1470.65,0.00022191,2]
[327747750,1716426666116,-551.09585412,0.00022191,2]
[327747751,1716426666126,-14731.76,0.00022191,2]
[327747752,1716426666137,-2344.74,0.00022191,2]
[327747753,1716426666148,-500.0,0.00022191,2]
[327747754,1716426666159,-500.0,0.00022191,2]
[327747755,1716426666169,-1264.37,0.00022191,2]
[327747756,1716426666179,-500.0,0.00022191,2]
[327747757,1716426666189,-686.11,0.00022191,2]
[327747758,1716426666199,-619.76,0.00022191,2]
[327747759,1716426666209,-500.0,0.00022191,2]
[327747760,1716426666219,-500.0,0.00022191,2]
[327747761,1716426666230,-500.0,0.00022191,2]
[327747762,1716426666239,-500.0,0.00022191,2]
[327747763,1716426666250,-546.73,0.00022191,2]
[327747764,1716426666261,-500.0,0.00022191,2]
[327747765,1716426666271,-500.0,0.00022191,2]
[327747766,1716426666280,-5594.05,0.00022191,2]
[327747767,1716426666291,-1798.9,0.00022191,2]
[327747768,1716426666301,-500.0,0.00022191,2]
[327747769,1716426666311,-500.0,0.00022191,2]
[327747770,1716426666321,-500.0,0.00022191,2]
[327747771,1716426666331,-500.0,0.00022191,2]
[327747772,1716426666341,-500.0,0.00022191,2]
[327747773,1716426666351,-507.2574914,0.00022191,2]
[327747774,1716426666361,-500.0,0.00022191,2]
[327747775,1716426666374,-500.0,0.00022191,2]
[327747776,1716426666384,-527.03,0.00022191,2]
[327747777,1716426666395,-500.0,0.00022191,2]
[327747778,1716426666405,-500.0,0.00022191,2]
[327747779,1716426666415,-500.0,0.00022191,2]
[327747780,1716426666426,-500.0,0.00022191,2]
[327747781,1716426666436,-636.78,0.00022191,2]
[327747782,1716426666447,-3516.8,0.00022191,2]
[327747783,1716426666457,-914.59,0.00022191,2]
[327747784,1716426666467,-500.0,0.00022191,2]
[327747785,1716426666477,-501.64,0.00022191,2]
[327747786,1716426666487,-500.0,0.00022191,2]
[327747787,1716426666497,-500.0,0.00022191,2]
[327747788,1716426666507,-500.0,0.00022191,2]
[327747789,1716426666519,-500.0,0.00022191,2]
[327747790,1716426666528,-500.0,0.00022191,2]
[327747791,1716426666538,-1175.93,0.00022191,2]
[327747792,1716426666548,-500.0,0.00022191,2]
[327747793,1716426666559,-2059.71,0.00022191,2]
[327747794,1716426666569,-957.12,0.00022191,2]
[327747795,1716426666579,-500.0,0.00022191,2]
[327747796,1716426666589,-500.0,0.00022191,2]
[327747797,1716426666599,-500.0,0.00022191,2]
[327747798,1716426666610,-500.0,0.00022191,2]
[327747799,1716426666623,-500.0,0.00022191,2]
[327747800,1716426666633,-500.0,0.00022191,2]
[327747801,1716426666644,-1128.5,0.00022191,2]
[327747802,1716426666654,-825.32,0.00022191,2]
[327747803,1716426666664,-652.34,0.00022191,2]
[327747805,1716426666674,-500.0,0.00022191,2]
[327747806,1716426666684,-500.0,0.00022191,2]
[327747807,1716426666694,-500.0,0.00022191,2]
[327747808,1716426666704,-500.0,0.00022191,2]
[327747809,1716426666714,-5743.77,0.00022191,2]
[327747810,1716426666724,-500.0,0.00022191,2]
[327747811,1716426666735,-500.0,0.00022191,2]
[327747812,1716426666748,-529.71,0.00022191,2]
[327747813,1716426666758,-663.83,0.00022191,2]
[327747814,1716426666768,-508.31732924,0.00022191,2]
[327747815,1716426666780,-590.14,0.00022191,2]
[327747816,1716426666789,-1020.99,0.00022191,2]
[327747817,1716426666799,-500.0,0.00022191,2]
[327747818,1716426666809,-500.0,0.00022191,2]
[327747819,1716426666820,-500.0,0.00022191,2]
[327747820,1716426666830,-500.0,0.00022191,2]
[327747821,1716426666839,-500.0,0.00022191,2]
[327747822,1716426666849,-500.0,0.00022191,2]
[327747823,1716426666858,-667.65,0.00022191,2]
[327747824,1716426666871,-740.4,0.00022191,2]
[327747825,1716426666881,-771.62,0.00022191,2]
[327747826,1716426666891,-931.25,0.00022191,2]
[327747827,1716426666900,-500.0,0.00022191,2]
[327747828,1716426666910,-500.0,0.00022191,2]
[327747829,1716426666920,-500.0,0.00022191,2]
[327747830,1716426666930,-1211.63,0.00022191,2]
[327747831,1716426666939,-500.0,0.00022191,2]
[327747832,1716426666949,-500.0,0.00022191,2]
[327747833,1716426666959,-500.0,0.00022191,2]
[327747834,1716426666968,-500.0,0.00022191,2]
[327747835,1716426666977,-1055.34,0.00022191,2]
[327747836,1716426666987,-500.0,0.00022191,2]
[327747837,1716426666997,-500.0,0.00022191,2]
[327747838,1716426667007,-151.0,0.00022191,7]
[327747839,1716426667016,-5023.58,0.00022191,2]
[327747840,1716426667026,-500.0,0.00022191,2]
[327747841,1716426667035,-500.0,0.00022191,2]
[327747842,1716426667045,-907.73,0.00022191,2]
[327747843,1716426667054,-151.0,0.00022191,7]
[327747844,1716426667064,-500.0,0.00022191,2]
[327747845,1716426667074,-6459.85,0.00022191,2]
[327747846,1716426667083,-500.0,0.00022191,2]
[327747847,1716426667092,-2440.64,0.00022191,2]
[327747848,1716426667102,-500.0,0.00022191,2]
[327747849,1716426667111,-1219.92,0.00022191,2]
[327747850,1716426667125,-500.0,0.00022191,2]
[327747851,1716426667135,-500.0,0.00022191,2]
[327747852,1716426667144,-151.0,0.00022191,7]
[327747853,1716426667154,-151.0,0.00022191,7]
[327747854,1716426667163,-500.0,0.00022191,2]
[327747855,1716426667172,-151.0,0.00022191,7]
[327747856,1716426667182,-151.0,0.00022191,7]
[327747857,1716426667191,-500.0,0.00022191,2]
[327747858,1716426667201,-500.0,0.00022191,2]
[327747859,1716426667211,-500.0,0.00022191,2]
[327747860,1716426667220,-500.0,0.00022191,2]
[327747861,1716426667230,-500.0,0.00022191,2]
[327747862,1716426667239,-500.0,0.00022191,2]
[327747863,1716426667249,-500.0,0.00022191,2]
[327747864,1716426667259,-500.0,0.00022191,2]
[327747865,1716426667268,-997.06,0.00022191,2]
[327747866,1716426667278,-515.62548738,0.00022191,2]
[327747867,1716426667288,-508.59900548,0.00022191,2]
[327747868,1716426667297,-850.39,0.00022191,2]
[327747869,1716426667307,-512.33845276,0.00022191,2]
[327747870,1716426667317,-500.0,0.00022191,2]
[327747871,1716426667327,-500.0,0.00022191,2]
[327747872,1716426667336,-547.26,0.00022191,2]
[327747873,1716426667346,-160.835563,0.00022191,7]
[327747874,1716426667356,-160.835563,0.00022191,7]
[327747875,1716426667369,-500.0,0.00022191,2]
[327747876,1716426667379,-500.0,0.00022191,2]
[327747877,1716426667389,-2891.8,0.00022191,2]
[327747878,1716426667398,-500.0,0.00022191,2]
[327747879,1716426667408,-160.835563,0.00022191,7]
[327747880,1716426667418,-1548.05,0.00022191,2]
[327747881,1716426667438,-160.835563,0.00022191,7]
[327747882,1716426667449,-500.0,0.00022191,2]
[327747883,1716426667460,-500.0,0.00022191,2]
[327747884,1716426667472,-500.0,0.00022191,2]
[327747885,1716426667483,-1903.29,0.00022191,2]
[327747886,1716426667494,-500.0,0.00022191,2]
[327747887,1716426667504,-500.0,0.00022191,2]
[327747888,1716426667515,-500.0,0.00022191,2]
[327747889,1716426667526,-2114.34,0.00022191,2]
[327747890,1716426667736,-500.0,0.00022191,2]
[327747891,1716426667749,-500.0,0.00022191,2]
[327747892,1716426667760,-268.45799,0.00022191,7]
[327747893,1716426667770,-3529.96,0.00022191,2]
[327747894,1716426667780,-500.0,0.00022191,2]
[327747895,1716426667791,-500.0,0.00022191,2]
[327747896,1716426667800,-500.0,0.00022191,2]
[327747897,1716426667810,-500.0,0.00022191,2]
[327747898,1716426667820,-500.0,0.00022191,2]
[327747899,1716426667832,-500.0,0.00022191,2]
[327747900,1716426667841,-500.0,0.00022191,2]
[327747901,1716426667851,-500.0,0.00022191,2]
[327747902,1716426667860,-500.0,0.00022191,2]
[327747903,1716426667875,-524.88,0.00022191,2]
[327747904,1716426667885,-500.0,0.00022191,2]
[327747905,1716426667894,-500.0,0.00022191,2]
[327747906,1716426667903,-1185.63,0.00022191,2]
[327747907,1716426667913,-500.0,0.00022191,2]
[327747908,1716426667923,-572.02,0.00022191,2]
[327747909,1716426667932,-500.0,0.00022191,2]
[327747910,1716426667941,-1072.65,0.00022191,2]
[327747911,1716426667951,-500.0,0.00022191,2]
[327747912,1716426667960,-500.0,0.00022191,2]
[327747913,1716426667969,-500.0,0.00022191,2]
[327747914,1716426667980,-2912.02,0.00022191,2]
[327747915,1716426667990,-500.0,0.00022191,2]
[327747916,1716426668001,-500.0,0.00022191,2]
[327747917,1716426668011,-500.0,0.00022191,2]
[327747918,1716426668021,-500.0,0.00022191,2]
[327747919,1716426668030,-500.0,0.00022191,2]
[327747920,1716426668039,-1275.89,0.00022191,2]
[327747921,1716426668048,-500.0,0.00022191,2]
[327747922,1716426668057,-500.0,0.00022191,2]
[327747923,1716426668067,-500.0,0.00022191,2]
[327747924,1716426668076,-500.0,0.00022191,2]
[327747925,1716426668086,-2786.57,0.00022191,2]
[327747926,1716426668096,-500.0,0.00022191,2]
[327747927,1716426668106,-500.0,0.00022191,2]
[327747928,1716426668119,-500.0,0.00022191,2]
[327747929,1716426668130,-500.0,0.00022191,2]
[327747930,1716426668139,-519.47260788,0.00022191,2]
[327747931,1716426668149,-500.0,0.00022191,2]
[327747932,1716426668158,-991.14,0.00022191,2]
[327747933,1716426668168,-500.0,0.00022191,2]
[327747934,1716426668177,-500.0,0.00022191,2]
[327747935,1716426668186,-500.0,0.00022191,2]
[327747936,1716426668196,-500.0,0.00022191,2]
[327747937,1716426668206,-1717.570394,0.00022191,7]
[327747938,1716426668215,-1717.570394,0.00022191,7]
[327747939,1716426668225,-500.0,0.00022191,2]
[327747940,1716426668235,-992.65,0.00022191,2]
[327747941,1716426668246,-500.0,0.00022191,2]
[327747942,1716426668255,-823.09,0.00022191,2]
[327747943,1716426668267,-500.0,0.00022191,2]
[327747944,1716426668276,-500.0,0.00022191,2]
[327747945,1716426668286,-151.0,0.00022191,7]
[327747946,1716426668295,-945.3,0.00022191,2]
[327747947,1716426668305,-151.0,0.00022191,7]
[327747948,1716426668314,-1118.48,0.00022191,2]
[327747949,1716426668323,-1717.570394,0.00022191,7]
[327747950,1716426668332,-1735.83,0.00022191,2]
[327747951,1716426668341,-1717.570394,0.00022191,7]
[327747952,1716426668350,-500.0,0.00022191,2]
[327747953,1716426668359,-500.0,0.00022191,2]
[327747954,1716426668371,-847.5,0.00022191,2]
[327747955,1716426668380,-500.0,0.00022191,2]
[327747956,1716426668389,-581.15,0.00022191,2]
[327747957,1716426668399,-332.730865,0.00022191,7]
[327747958,1716426668409,-514.68877741,0.00022191,2]
[327747959,1716426668418,-500.0,0.00022191,2]
[327747960,1716426668428,-332.730865,0.00022191,7]
[327747961,1716426668442,-500.0,0.00022191,2]
[327747962,1716426668452,-500.0,0.00022191,2]
[327747963,1716426668462,-500.0,0.00022191,2]
[327747964,1716426668472,-332.730865,0.00022191,7]
[327747965,1716426668482,-500.0,0.00022191,2]
[327747966,1716426668492,-500.0,0.00022191,2]
[327747967,1716426668502,-332.730865,0.00022191,7]
[327747968,1716426668511,-1281.74,0.00022191,2]
[327747969,1716426668521,-500.0,0.00022191,2]
[327747970,1716426668531,-500.0,0.00022191,2]
[327747971,1716426668541,-1543.8,0.00022191,2]
[327747972,1716426668552,-1159.16,0.00022191,2]
[327747973,1716426668561,-500.0,0.00022191,2]
[327747974,1716426668572,-231.18945883,0.00022191,2]
[327747975,1716426668581,-500.0,0.00022191,2]
[327747976,1716426668591,-500.0,0.00022191,2]
[327747977,1716426668601,-500.0,0.00022191,2]
[327747978,1716426668611,-1060.7,0.00022191,2]
[327747979,1716426668624,-1455.98,0.00022191,2]
[327747980,1716426668634,-1182.68,0.00022191,2]
[327747981,1716426668644,-241.705779,0.00022191,7]
[327747982,1716426668654,-241.705779,0.00022191,7]
[327747983,1716426668664,-500.0,0.00022191,2]
[327747984,1716426668673,-553.47598685,0.00022191,2]
[327747985,1716426668683,-816.83,0.00022191,2]
[327747986,1716426668693,-500.0,0.00022191,2]
[327747987,1716426668703,-500.0,0.00022191,2]
[327747988,1716426668713,-500.0,0.00022191,2]
[327747989,1716426668723,-500.0,0.00022191,2]
[327747990,1716426668733,-500.0,0.00022191,2]
[327747991,1716426668746,-241.705779,0.00022191,7]
[327747992,1716426668756,-241.705779,0.00022191,7]
[327747993,1716426668766,-1209.43,0.00022191,2]
[327747994,1716426668776,-500.0,0.00022191,2]
[327747995,1716426668787,-500.0,0.00022191,2]
[327747996,1716426668796,-1071.08,0.00022191,2]
[327747997,1716426668806,-730.73,0.00022191,2]
[327747998,1716426668819,-950.7,0.00022191,2]
[327747999,1716426668829,-500.0,0.00022191,2]
[327748000,1716426668839,-500.0,0.00022191,2]
[327748001,1716426668848,-1755.43,0.00022191,2]
[327748002,1716426668859,-500.0,0.00022191,2]
[327748003,1716426668872,-977.89,0.00022191,2]
[327748004,1716426668882,-500.0,0.00022191,2]
[327748005,1716426668891,-500.0,0.00022191,2]
[327748006,1716426668901,-500.0,0.00022191,2]
[327748007,1716426668912,-500.0,0.00022191,2]
[327748008,1716426668922,-990.31,0.00022191,2]
[327748009,1716426668931,-500.0,0.00022191,2]
[327748010,1716426668941,-973.33,0.00022191,2]
[327748011,1716426668950,-974.99,0.00022191,2]
[327748012,1716426668960,-500.0,0.00022191,2]
[327748013,1716426668969,-500.0,0.00022191,2]
[327748014,1716426668979,-507.47682029,0.00022191,2]
[327748015,1716426668990,-500.0,0.00022191,2]
[327748016,1716426669000,-765.17,0.00022191,2]
[327748017,1716426669010,-576.06825912,0.00022191,2]
[327748018,1716426669020,-500.0,0.00022191,2]
[327748019,1716426669031,-500.0,0.00022191,2]
[327748020,1716426669041,-511.050777,0.00022191,2]
[327748021,1716426669051,-500.0,0.00022191,2]
[327748022,1716426669060,-3405.53,0.00022191,2]
[327748023,1716426669071,-514.43096098,0.00022191,2]
[327748024,1716426669081,-1323.69,0.00022191,2]
[327748025,1716426669091,-500.0,0.00022191,2]
[327748026,1716426669101,-508.23143607,0.00022191,2]
[327748027,1716426669111,-511.69393961,0.00022191,2]
[327748028,1716426669124,-500.0,0.00022191,2]
[327748029,1716426669134,-500.0,0.00022191,2]
[327748030,1716426669144,-1486.42,0.00022191,2]
[327748031,1716426669155,-500.0,0.00022191,2]
[327748032,1716426669165,-500.0,0.00022191,2]
[327748033,1716426669175,-151.0,0.00022191,7]
[327748034,1716426669186,-151.0,0.00022191,7]
[327748035,1716426669196,-500.0,0.00022191,2]
[327748036,1716426669206,-1000.0,0.00022191,2]
[327748037,1716426669216,-500.0,0.00022191,2]
[327748038,1716426669226,-500.0,0.00022191,2]
[327748039,1716426669236,-2384.21,0.000222,2]
[327748040,1716426669246,-2003.39,0.000222,2]
[327748041,1716426669257,-7381.93678445,0.00022215,2]
[327748042,1716426669267,-5139.51218112,0.00022264,2]
[327748043,1716426669278,-500.0,0.00022328,2]
[327748044,1716426669288,-1100.0,0.00022328,2]
[327748045,1716426669298,-900.0,0.00022328,2]
[327748046,1716426669308,-550.0,0.00022425,2]
[327748047,1716426669318,-877.35,0.00022464,2]
[327748048,1716426669328,-877.35,0.00022464,2]
[327748049,1716426669339,-461.93026731,0.00022464,2]
[327748050,1716426669349,-150.0,0.00022464,2]
[327748051,1716426669359,-286.47693409,0.00022465,2]
[327748052,1716426669371,-500.0,0.00022465,2]
[327748053,1716426669381,-500.0,0.00022465,2]
[327748054,1716426669392,-500.0,0.00022465,2]
[327748055,1716426669402,-500.0,0.00022465,2]
[327748056,1716426669412,-500.0,0.00022465,2]
[327748057,1716426669422,-500.0,0.00022465,2]
[327748058,1716426669434,-555.51162545,0.00022465,2]
[327748059,1716426669443,-1630.4,0.00022465,2]
[327748060,1716426669453,-500.0,0.00022465,2]
[327748061,1716426669463,-512.53482864,0.00022465,2]
[327748062,1716426669472,-511.50675406,0.00022465,2]
[327748063,1716426669482,-500.0,0.00022465,2]
[327748064,1716426669492,-500.0,0.00022465,2]
[327748065,1716426669501,-270.54588434,0.00022465,2]
[327748066,1716426669511,-500.0,0.00022465,2]
[327748067,1716426669520,-500.0,0.00022465,2]
[327748068,1716426669530,-500.0,0.00022465,2]
[327748069,1716426669539,-592.24509986,0.00022465,2]
[327748070,1716426669548,-500.0,0.00022465,2]
[327748071,1716426669558,-500.0,0.00022465,2]
[327748072,1716426669567,-599.00107843,0.00022465,2]
[327748073,1716426669578,-500.0,0.00022465,2]
[327748074,1716426669588,-500.0,0.00022465,2]
[327748075,1716426669598,-1975.97,0.00022465,2]
[327748076,1716426669608,-500.0,0.00022465,2]
[327748077,1716426669619,-500.0,0.00022465,2]
[327748078,1716426669629,-867.84,0.00022465,2]
[327748079,1716426669638,-500.0,0.00022465,2]
[327748080,1716426669648,-517.08972319,0.00022465,2]
[327748081,1716426669657,-509.85765806,0.00022465,2]
[327748082,1716426669667,-500.0,0.00022465,2]
[327748083,1716426669677,-516.60040064,0.00022465,2]
[327748084,1716426669687,-500.0,0.00022465,2]
[327748085,1716426669697,-500.0,0.00022465,2]
[327748086,1716426669706,-500.0,0.00022465,2]
[327748087,1716426669715,-516.36050697,0.00022465,2]
[327748088,1716426669725,-500.0,0.00022465,2]
[327748089,1716426669735,-588.50243681,0.00022465,2]
[327748090,1716426669744,-500.0,0.00022465,2]
[327748091,1716426669759,-500.0,0.00022465,2]
[327748092,1716426669769,-500.0,0.00022465,2]
[327748093,1716426669779,-1023.97,0.00022465,2]
[327748094,1716426669789,-315.90944694,0.00022465,2]
[327748095,1716426669800,-500.0,0.00022465,2]
[327748096,1716426669810,-1186.79,0.00022465,2]
[327748097,1716426669819,-500.0,0.00022465,2]
[327748098,1716426669832,-500.0,0.00022465,2]
[327748099,1716426669842,-232.16775733,0.00022465,2]
[327748100,1716426669852,-514.02984364,0.00022465,2]
[327748101,1716426669862,-507.1965898,0.00022465,2]
[327748102,1716426669874,-290.7562153,0.00022465,2]
[327748103,1716426669884,-500.0,0.00022465,2]
[327748104,1716426669894,-500.0,0.00022465,2]
[327748105,1716426669904,-510.05339101,0.00022465,2]
[327748106,1716426669914,-500.0,0.00022465,2]
[327748107,1716426669925,-1000.0,0.00022465,2]
[327748108,1716426669934,-153.08466262,0.00022465,2]
[327748109,1716426669944,-500.0,0.00022465,2]
[327748110,1716426669953,-500.0,0.00022465,2]
[327748111,1716426669963,-500.0,0.00022465,2]
[327748112,1716426669972,-500.0,0.00022465,2]
[327748113,1716426669981,-500.0,0.00022465,2]
[327748114,1716426669991,-500.0,0.00022465,2]
[327748115,1716426670000,-500.0,0.00022465,2]
[327748116,1716426670010,-500.0,0.00022465,2]
[327748117,1716426670019,-500.0,0.00022465,2]
[327748118,1716426670029,-500.0,0.00022465,2]
[327748119,1716426670038,-390.66667629,0.00022465,2]
[327748120,1716426670048,-500.0,0.00022465,2]
[327748121,1716426670057,-500.0,0.00022465,2]
[327748122,1716426670067,-500.0,0.00022465,2]
[327748123,1716426670076,-587.62656573,0.00022465,2]
[327748124,1716426670086,-500.0,0.00022465,2]
[327748125,1716426670095,-500.0,0.00022465,2]
[327748126,1716426670105,-213.78171784,0.00022465,2]
[327748127,1716426670114,-500.0,0.00022465,2]
[327748128,1716426670127,-500.0,0.00022465,2]
[327748129,1716426670136,-500.0,0.00022465,2]
[327748130,1716426670146,-500.0,0.00022465,2]
[327748131,1716426670155,-500.0,0.00022465,2]
[327748132,1716426670165,-500.0,0.00022465,2]
[327748133,1716426670175,-500.0,0.00022465,2]
[327748134,1716426670184,-500.0,0.00022465,2]
[327748135,1716426670194,-500.0,0.00022465,2]
[327748136,1716426670203,-500.0,0.00022465,2]
[327748137,1716426670213,-573.60155898,0.00022465,2]
[327748138,1716426670222,-500.0,0.00022465,2]
[327748139,1716426670231,-500.0,0.00022465,2]
[327748140,1716426670240,-500.0,0.00022465,2]
[327748141,1716426670250,-500.0,0.00022465,2]
[327748142,1716426670259,-521.16570612,0.00022465,2]
[327748143,1716426670269,-500.0,0.00022465,2]
[327748144,1716426670278,-500.0,0.00022465,2]
[327748145,1716426670287,-500.0,0.00022465,2]
[327748146,1716426670297,-500.0,0.00022465,2]
[327748147,1716426670306,-500.0,0.00022465,2]
[327748148,1716426670316,-952.5,0.00022465,2]
[327748149,1716426670325,-500.0,0.00022465,2]
[327748150,1716426670334,-500.0,0.00022465,2]
[327748151,1716426670343,-500.0,0.00022465,2]
[327748152,1716426670352,-500.0,0.00022465,2]
[327748153,1716426670362,-500.0,0.00022465,2]
[327748154,1716426670374,-500.0,0.00022465,2]
[327748155,1716426670384,-500.0,0.00022465,2]
[327748156,1716426670394,-500.0,0.00022465,2]
[327748157,1716426670404,-500.0,0.00022465,2]
[327748158,1716426670414,-500.0,0.00022465,2]
[327748159,1716426670424,-500.0,0.00022465,2]
[327748160,1716426670434,-532.88204767,0.00022465,2]
[327748161,1716426670444,-500.0,0.00022465,2]
[327748162,1716426670455,-500.0,0.00022465,2]
[327748163,1716426670465,-500.0,0.00022465,2]
[327748164,1716426670475,-582.95,0.00022465,2]
[327748165,1716426670486,-1240.53,0.00022465,2]
[327748166,1716426670496,-500.0,0.00022465,2]
[327748167,1716426670507,-500.0,0.00022465,2]
[327748168,1716426670517,-535.8995352,0.00022465,2]
[327748169,1716426670527,-523.21,0.00022465,2]
[327748170,1716426670536,-500.0,0.00022465,2]
[327748171,1716426670547,-500.0,0.00022465,2]
[327748172,1716426670556,-500.0,0.00022465,2]
[327748173,1716426670566,-500.0,0.00022465,2]
[327748174,1716426670576,-500.0,0.00022465,2]
[327748175,1716426670587,-500.0,0.00022465,2]
[327748176,1716426670596,-500.0,0.00022465,2]
[327748177,1716426670607,-500.0,0.00022465,2]
[327748178,1716426670619,-500.0,0.00022465,2]
[327748179,1716426670634,-500.0,0.00022465,2]
[327748180,1716426670644,-500.0,0.00022465,2]
[327748181,1716426670654,-500.0,0.00022465,2]
[327748182,1716426670663,-367.31564055,0.00022465,2]
[327748183,1716426670674,-151.0,0.00022465,7]
[327748184,1716426670684,-151.0,0.00022465,7]
[327748185,1716426670695,-500.0,0.00022465,2]
[327748186,1716426670705,-509.18370385,0.00022465,2]
[327748187,1716426670715,-500.0,0.00022465,2]